[Event "Titled Tuesday Blitz May 4 2021"]
[White "Onufrienko, Vladislav"]
[Black "Song, Michael"]
[WhiteFideId "13804332"]
[BlackFideId "2613190"]
[WhiteElo "1661"]
[BlackElo "2274"]
[Result "0-1"]
[Round "06"]
[TimeControl "180+1"]
[Date "2021.05.04"]
[WhiteClock "0:00:01"]
[BlackClock "0:00:05"]

1. e4 {[%clk 0:03:00]}  e5 {[%clk 0:02:49]} 2. Nf3 {[%clk 0:03:00]}  Nc6 {[%clk 0:02:49]} 3. Bc4 {[%clk 0:03:01]}  Bc5 {[%clk 0:02:49]} 4. b4 {[%clk 0:03:01]}  Bxb4 {[%clk 0:02:49]} 5. c3 {[%clk 0:03:01]}  Ba5 {[%clk 0:02:49]} 6. d4 {[%clk 0:03:01]}  exd4 {[%clk 0:02:49]} 7. O-O {[%clk 0:03:01]}  Nf6 {[%clk 0:02:49]} 8. cxd4 {[%clk 0:02:59]}  Nxe4 {[%clk 0:02:45]} 9. d5 {[%clk 0:02:37]}  Ne7 {[%clk 0:02:44]} 10. Qd4 {[%clk 0:02:07]}  Nf6 {[%clk 0:02:38]} 11. Bg5 {[%clk 0:01:54]}  Ng6 {[%clk 0:02:26]} 12. Nc3 {[%clk 0:01:38]}  Bxc3 {[%clk 0:01:55]} 13. Rfe1+ {[%clk 0:01:15]}  Bxe1 {[%clk 0:01:54]} 14. Rxe1+ {[%clk 0:01:16]}  Kf8 {[%clk 0:01:54]} 15. d6 {[%clk 0:01:14]}  h6 {[%clk 0:01:37]} 16. dxc7 {[%clk 0:01:05]}  Qxc7 {[%clk 0:01:28]} 17. Bxf6 {[%clk 0:00:24]}  gxf6 {[%clk 0:01:27]} 18. Qxf6 {[%clk 0:00:23]}  Qxc4 {[%clk 0:01:09]} 19. Ne5 {[%clk 0:00:22]}  Nxe5 {[%clk 0:00:17]} 20. Qxh8+ {[%clk 0:00:21]}  Ke7 {[%clk 0:00:17]} 21. Qxe5+ {[%clk 0:00:10]}  Kd8 {[%clk 0:00:17]} 22. Qd6 {[%clk 0:00:07]}  Qc6 {[%clk 0:00:11]} 23. Qf8+ {[%clk 0:00:07]}  Kc7 {[%clk 0:00:12]} 24. Qxf7 {[%clk 0:00:08]}  b6 {[%clk 0:00:06]} 25. Qf4+ {[%clk 0:00:03]}  Kb7 {[%clk 0:00:06]} 26. Rc1 {[%clk 0:00:03]}  Qd5 {[%clk 0:00:07]} 27. Rc7+ {[%clk 0:00:02]}  Ka6 {[%clk 0:00:07]} 28. Qc1 {[%clk 0:00:02]}  Qd6 {[%clk 0:00:04]} 29. Qc4+ {[%clk 0:00:02]}  b5 {[%clk 0:00:04]} 30. Qc2 {[%clk 0:00:01]}  Kb6 {[%clk 0:00:05]} 0-1


[Site "https://www.chess.com"]

[Event "Titled Tuesday Blitz May 4 2021"]
[White "Paiva, Henrique M A Albergaria"]
[Black "Escalante Ramirez, Brian Sebasti"]
[WhiteFideId "1920995"]
[BlackFideId "3819566"]
[WhiteElo "2055"]
[BlackElo "2193"]
[Result "1-0"]
[Round "06"]
[TimeControl "180+1"]
[Date "2021.05.04"]
[WhiteClock "0:01:38"]
[BlackClock "0:01:12"]

1. e4 {[%clk 0:03:00]}  e6 {[%clk 0:02:55]} 2. d4 {[%clk 0:03:00]}  d5 {[%clk 0:02:56]} 3. e5 {[%clk 0:03:00]}  c5 {[%clk 0:02:47]} 4. c3 {[%clk 0:03:00]}  Nc6 {[%clk 0:02:44]} 5. Nf3 {[%clk 0:02:58]}  Bd7 {[%clk 0:02:45]} 6. Bd3 {[%clk 0:02:58]}  cxd4 {[%clk 0:02:44]} 7. cxd4 {[%clk 0:02:59]}  Qb6 {[%clk 0:02:45]} 8. O-O {[%clk 0:03:00]}  Nxd4 {[%clk 0:02:45]} 9. Nbd2 {[%clk 0:03:00]}  Bc5 {[%clk 0:02:43]} 10. b4 {[%clk 0:02:51]}  Qxb4 {[%clk 0:02:43]} 11. Rb1 {[%clk 0:02:50]}  Nxf3+ {[%clk 0:02:42]} 12. Nxf3 {[%clk 0:02:50]}  Qa4 {[%clk 0:02:42]} 13. Bc2 {[%clk 0:02:45]}  Qc6 {[%clk 0:02:42]} 14. Ng5 {[%clk 0:02:43]}  Nh6 {[%clk 0:02:13]} 15. Qh5 {[%clk 0:02:12]}  Bd4 {[%clk 0:02:02]} 16. Bd3 {[%clk 0:01:45]}  Bxe5 {[%clk 0:02:02]} 17. Nf3 {[%clk 0:01:46]}  Bc3 {[%clk 0:01:30]} 18. Bxh6 {[%clk 0:01:44]}  gxh6 {[%clk 0:01:30]} 19. Rfc1 {[%clk 0:01:41]}  Rc8 {[%clk 0:01:13]} 20. Ne5 {[%clk 0:01:38]}  Bxe5 {[%clk 0:01:11]} 21. Rxc6 {[%clk 0:01:38]}  Bxc6 {[%clk 0:01:12]} 22. Qxe5 {[%clk 0:01:38]} 1-0


[Site "https://www.chess.com"]

[Event "Titled Tuesday Blitz May 4 2021"]
[White "Pantzar, Milton"]
[Black "Shapkin, Anatoliy"]
[WhiteFideId "1721003"]
[BlackFideId "34108332"]
[WhiteElo "2323"]
[BlackElo "2221"]
[Result "1-0"]
[Round "06"]
[TimeControl "180+1"]
[Date "2021.05.04"]
[WhiteClock "0:00:10"]
[BlackClock "0:00:06"]

1. c4 {[%clk 0:03:00]}  c5 {[%clk 0:02:59]} 2. Nc3 {[%clk 0:02:59]}  Nc6 {[%clk 0:03:00]} 3. g3 {[%clk 0:02:59]}  Nf6 {[%clk 0:03:00]} 4. Bg2 {[%clk 0:03:00]}  g6 {[%clk 0:03:01]} 5. e3 {[%clk 0:02:57]}  Bg7 {[%clk 0:03:01]} 6. Nge2 {[%clk 0:02:57]}  O-O {[%clk 0:03:00]} 7. O-O {[%clk 0:02:57]}  e6 {[%clk 0:03:01]} 8. d4 {[%clk 0:02:54]}  cxd4 {[%clk 0:03:01]} 9. exd4 {[%clk 0:02:51]}  d5 {[%clk 0:03:00]} 10. cxd5 {[%clk 0:02:44]}  Nxd5 {[%clk 0:03:01]} 11. Nxd5 {[%clk 0:02:39]}  exd5 {[%clk 0:03:02]} 12. Be3 {[%clk 0:02:39]}  Be6 {[%clk 0:03:00]} 13. Qd2 {[%clk 0:02:37]}  Re8 {[%clk 0:02:54]} 14. Rfd1 {[%clk 0:02:29]}  Qa5 {[%clk 0:02:48]} 15. Qxa5 {[%clk 0:02:27]}  Nxa5 {[%clk 0:02:49]} 16. b3 {[%clk 0:02:23]}  Nc6 {[%clk 0:02:43]} 17. Nf4 {[%clk 0:02:21]}  Rac8 {[%clk 0:02:39]} 18. Nxd5 {[%clk 0:02:00]}  Red8 {[%clk 0:02:38]} 19. Nf4 {[%clk 0:01:57]}  Nxd4 {[%clk 0:02:26]} 20. Nxe6 {[%clk 0:01:57]}  Nxe6 {[%clk 0:02:17]} 21. Rxd8+ {[%clk 0:01:52]}  Rxd8 {[%clk 0:02:13]} 22. Rc1 {[%clk 0:01:53]}  b6 {[%clk 0:02:13]} 23. h4 {[%clk 0:01:47]}  Bd4 {[%clk 0:02:12]} 24. Bxd4 {[%clk 0:01:37]}  Rxd4 {[%clk 0:02:08]} 25. Rc2 {[%clk 0:01:36]}  Nc5 {[%clk 0:02:02]} 26. Bf3 {[%clk 0:01:33]}  a5 {[%clk 0:01:56]} 27. Kf1 {[%clk 0:01:28]}  Kf8 {[%clk 0:01:55]} 28. Ke2 {[%clk 0:01:27]}  a4 {[%clk 0:01:51]} 29. bxa4 {[%clk 0:01:23]}  Rxa4 {[%clk 0:01:52]} 30. Bd5 {[%clk 0:01:21]}  Rb4 {[%clk 0:01:34]} 31. Rd2 {[%clk 0:01:07]}  Ke7 {[%clk 0:01:31]} 32. Kf3 {[%clk 0:01:05]}  f6 {[%clk 0:01:29]} 33. Bg8 {[%clk 0:01:04]}  h6 {[%clk 0:01:28]} 34. Bh7 {[%clk 0:01:01]}  g5 {[%clk 0:01:28]} 35. hxg5 {[%clk 0:01:01]}  hxg5 {[%clk 0:01:28]} 36. Bf5 {[%clk 0:01:01]}  Ra4 {[%clk 0:01:20]} 37. Rb2 {[%clk 0:00:56]}  Ra6 {[%clk 0:01:07]} 38. Bc8 {[%clk 0:00:55]}  Ra8 {[%clk 0:00:58]} 39. Bf5 {[%clk 0:00:53]}  Ra6 {[%clk 0:00:57]} 40. Bc8 {[%clk 0:00:53]}  Ra3+ {[%clk 0:00:55]} 41. Kg2 {[%clk 0:00:53]}  Nd3 {[%clk 0:00:46]} 42. Re2+ {[%clk 0:00:38]}  Kd8 {[%clk 0:00:39]} 43. Bf5 {[%clk 0:00:37]}  Ne5 {[%clk 0:00:32]} 44. Rb2 {[%clk 0:00:36]}  Kc7 {[%clk 0:00:29]} 45. Rc2+ {[%clk 0:00:35]}  Kd6 {[%clk 0:00:29]} 46. Rd2+ {[%clk 0:00:21]}  Kc5 {[%clk 0:00:29]} 47. Re2 {[%clk 0:00:19]}  b5 {[%clk 0:00:26]} 48. Be6 {[%clk 0:00:18]}  Rc3 {[%clk 0:00:20]} 49. Rd2 {[%clk 0:00:14]}  b4 {[%clk 0:00:13]} 50. Rd8 {[%clk 0:00:13]}  Kb6 {[%clk 0:00:06]} 51. Rf8 {[%clk 0:00:13]}  Rc2 {[%clk 0:00:03]} 52. Rxf6 {[%clk 0:00:12]}  Kc5 {[%clk 0:00:03]} 53. Rf5 {[%clk 0:00:09]}  Kb5 {[%clk 0:00:03]} 54. Rxe5+ {[%clk 0:00:07]}  Kb6 {[%clk 0:00:03]} 55. Bb3 {[%clk 0:00:07]}  Rd2 {[%clk 0:00:03]} 56. Rxg5 {[%clk 0:00:07]}  Rb2 {[%clk 0:00:02]} 57. Rf5 {[%clk 0:00:07]}  Rd2 {[%clk 0:00:03]} 58. g4 {[%clk 0:00:08]}  Rd4 {[%clk 0:00:03]} 59. Kg3 {[%clk 0:00:08]}  Rd3+ {[%clk 0:00:03]} 60. f3 {[%clk 0:00:09]}  Rd2 {[%clk 0:00:04]} 61. g5 {[%clk 0:00:09]}  Kc6 {[%clk 0:00:05]} 62. g6 {[%clk 0:00:09]}  Kd6 {[%clk 0:00:06]} 63. g7 {[%clk 0:00:09]}  Rd1 {[%clk 0:00:06]} 64. Rg5 {[%clk 0:00:09]}  Rg1+ {[%clk 0:00:07]} 65. Kf4 {[%clk 0:00:10]}  Rc1 {[%clk 0:00:06]} 1-0


[Site "https://www.chess.com"]

[Event "Titled Tuesday Blitz May 4 2021"]
[White "PattyCastillo"]
[Black "Smith, Shreyas"]
[BlackFideId "7400713"]
[WhiteElo "2018"]
[BlackElo "2129"]
[Result "0-1"]
[Round "06"]
[TimeControl "180+1"]
[Date "2021.05.04"]
[WhiteClock "0:00:02"]
[BlackClock "0:00:31"]

1. d4 {[%clk 0:03:00]}  Nf6 {[%clk 0:02:59]} 2. Nf3 {[%clk 0:02:59]}  e6 {[%clk 0:02:59]} 3. e3 {[%clk 0:02:58]}  c5 {[%clk 0:02:58]} 4. Bd3 {[%clk 0:02:54]}  b6 {[%clk 0:02:58]} 5. O-O {[%clk 0:02:52]}  Nc6 {[%clk 0:02:58]} 6. b3 {[%clk 0:02:52]}  Bb7 {[%clk 0:02:55]} 7. Bb2 {[%clk 0:02:51]}  cxd4 {[%clk 0:02:55]} 8. exd4 {[%clk 0:02:51]}  d6 {[%clk 0:02:55]} 9. Nbd2 {[%clk 0:02:51]}  Be7 {[%clk 0:02:56]} 10. c4 {[%clk 0:02:50]}  O-O {[%clk 0:02:56]} 11. a3 {[%clk 0:02:50]}  d5 {[%clk 0:02:50]} 12. Qe2 {[%clk 0:02:46]}  Rc8 {[%clk 0:02:47]} 13. Rac1 {[%clk 0:02:45]}  dxc4 {[%clk 0:02:45]} 14. bxc4 {[%clk 0:02:45]}  Qd6 {[%clk 0:02:18]} 15. Rfd1 {[%clk 0:02:37]}  Qf4 {[%clk 0:02:16]} 16. g3 {[%clk 0:02:32]}  Qg4 {[%clk 0:02:15]} 17. Qe3 {[%clk 0:02:16]}  Rfd8 {[%clk 0:02:12]} 18. Ne4 {[%clk 0:01:16]}  Nxe4 {[%clk 0:02:09]} 19. Qxe4 {[%clk 0:01:16]}  Qxe4 {[%clk 0:02:06]} 20. Bxe4 {[%clk 0:01:16]}  Na5 {[%clk 0:02:03]} 21. Bxb7 {[%clk 0:01:16]}  Nxb7 {[%clk 0:02:04]} 22. Ne5 {[%clk 0:01:12]}  Na5 {[%clk 0:01:59]} 23. d5 {[%clk 0:00:59]}  f6 {[%clk 0:01:45]} 24. Nc6 {[%clk 0:00:54]}  Nxc6 {[%clk 0:01:43]} 25. dxc6 {[%clk 0:00:54]}  Rxc6 {[%clk 0:01:29]} 26. Rxd8+ {[%clk 0:00:54]}  Bxd8 {[%clk 0:01:30]} 27. Rd1 {[%clk 0:00:54]}  Bc7 {[%clk 0:01:24]} 28. Rd7 {[%clk 0:00:43]}  Rxc4 {[%clk 0:01:22]} 29. Kg2 {[%clk 0:00:42]}  a5 {[%clk 0:01:15]} 30. Bd4 {[%clk 0:00:37]}  b5 {[%clk 0:01:12]} 31. Be3 {[%clk 0:00:33]}  b4 {[%clk 0:01:09]} 32. axb4 {[%clk 0:00:32]}  axb4 {[%clk 0:01:10]} 33. Rd1 {[%clk 0:00:24]}  Be5 {[%clk 0:00:49]} 34. Rb1 {[%clk 0:00:22]}  Bc3 {[%clk 0:00:46]} 35. Kf3 {[%clk 0:00:18]}  Kf7 {[%clk 0:00:46]} 36. Ke2 {[%clk 0:00:18]}  Rc6 {[%clk 0:00:39]} 37. Kd3 {[%clk 0:00:15]}  e5 {[%clk 0:00:38]} 38. h4 {[%clk 0:00:14]}  Ke6 {[%clk 0:00:38]} 39. Bd2 {[%clk 0:00:10]}  f5 {[%clk 0:00:35]} 40. Bxc3 {[%clk 0:00:10]}  bxc3 {[%clk 0:00:35]} 41. Rc1 {[%clk 0:00:09]}  c2 {[%clk 0:00:32]} 42. Rxc2 {[%clk 0:00:09]}  Rxc2 {[%clk 0:00:32]} 43. Kxc2 {[%clk 0:00:09]}  Kd5 {[%clk 0:00:32]} 44. Kd3 {[%clk 0:00:09]}  e4+ {[%clk 0:00:33]} 45. Ke3 {[%clk 0:00:09]}  Ke5 {[%clk 0:00:33]} 46. f4+ {[%clk 0:00:07]}  exf3 {[%clk 0:00:32]} 47. Kxf3 {[%clk 0:00:08]}  g6 {[%clk 0:00:32]} 48. g4 {[%clk 0:00:07]}  f4 {[%clk 0:00:31]} 49. g5 {[%clk 0:00:05]}  Kf5 {[%clk 0:00:31]} 50. Kf2 {[%clk 0:00:03]}  Kg4 {[%clk 0:00:31]} 51. Kg2 {[%clk 0:00:02]}  Kxh4 {[%clk 0:00:31]} 0-1


[Site "https://www.chess.com"]

[Event "Titled Tuesday Blitz May 4 2021"]
[White "Perez Gormaz, Matias"]
[Black "TigrVShlyape"]
[WhiteFideId "3406342"]
[WhiteElo "2414"]
[BlackElo "2824"]
[Result "1/2-1/2"]
[Round "06"]
[TimeControl "180+1"]
[Date "2021.05.04"]
[WhiteClock "0:00:16"]
[BlackClock "0:00:19"]

1. e4 {[%clk 0:03:00]}  e5 {[%clk 0:02:57]} 2. Nf3 {[%clk 0:03:01]}  Nc6 {[%clk 0:02:57]} 3. Bc4 {[%clk 0:03:01]}  Nf6 {[%clk 0:02:56]} 4. d3 {[%clk 0:03:02]}  h6 {[%clk 0:02:55]} 5. O-O {[%clk 0:03:01]}  d6 {[%clk 0:02:55]} 6. c3 {[%clk 0:03:02]}  g6 {[%clk 0:02:55]} 7. a4 {[%clk 0:03:02]}  Bg7 {[%clk 0:02:51]} 8. Re1 {[%clk 0:02:59]}  O-O {[%clk 0:02:50]} 9. a5 {[%clk 0:02:58]}  a6 {[%clk 0:02:49]} 10. Nbd2 {[%clk 0:02:58]}  Kh7 {[%clk 0:02:44]} 11. h3 {[%clk 0:02:43]}  Be6 {[%clk 0:02:34]} 12. Bxe6 {[%clk 0:02:34]}  fxe6 {[%clk 0:02:34]} 13. b4 {[%clk 0:02:35]}  Nh5 {[%clk 0:02:30]} 14. Nf1 {[%clk 0:02:30]}  Qd7 {[%clk 0:02:25]} 15. N1h2 {[%clk 0:02:26]}  Rf7 {[%clk 0:02:25]} 16. Be3 {[%clk 0:02:22]}  Raf8 {[%clk 0:02:23]} 17. Qd2 {[%clk 0:02:14]}  Nf4 {[%clk 0:02:12]} 18. h4 {[%clk 0:02:11]}  Ne7 {[%clk 0:02:03]} 19. g3 {[%clk 0:02:07]}  Nh5 {[%clk 0:02:02]} 20. Kg2 {[%clk 0:01:59]}  Nc6 {[%clk 0:01:28]} 21. Rad1 {[%clk 0:01:54]}  d5 {[%clk 0:01:24]} 22. Bc5 {[%clk 0:01:50]}  Re8 {[%clk 0:01:19]} 23. Ng4 {[%clk 0:01:47]}  Qd8 {[%clk 0:01:14]} 24. Be3 {[%clk 0:01:33]}  dxe4 {[%clk 0:01:05]} 25. dxe4 {[%clk 0:01:33]}  Qxd2 {[%clk 0:01:04]} 26. Nxd2 {[%clk 0:01:29]}  Nf6 {[%clk 0:01:04]} 27. Nxf6+ {[%clk 0:01:27]}  Bxf6 {[%clk 0:01:04]} 28. Nb3 {[%clk 0:01:27]}  Be7 {[%clk 0:01:01]} 29. Rd7 {[%clk 0:01:27]}  Rc8 {[%clk 0:00:55]} 30. Nc5 {[%clk 0:01:26]}  Nb8 {[%clk 0:00:55]} 31. Rd2 {[%clk 0:01:12]}  Bxc5 {[%clk 0:00:54]} 32. Bxc5 {[%clk 0:01:13]}  Nd7 {[%clk 0:00:47]} 33. Be3 {[%clk 0:01:13]}  Nf6 {[%clk 0:00:46]} 34. f3 {[%clk 0:01:13]}  Ne8 {[%clk 0:00:43]} 35. Red1 {[%clk 0:01:06]}  Nf6 {[%clk 0:00:42]} 36. Bc5 {[%clk 0:01:03]}  g5 {[%clk 0:00:41]} 37. hxg5 {[%clk 0:01:02]}  hxg5 {[%clk 0:00:40]} 38. g4 {[%clk 0:01:02]}  Kg6 {[%clk 0:00:40]} 39. Bf2 {[%clk 0:01:01]}  Ne8 {[%clk 0:00:37]} 40. Bg3 {[%clk 0:00:52]}  Kf6 {[%clk 0:00:37]} 41. Rh1 {[%clk 0:00:53]}  Re7 {[%clk 0:00:29]} 42. Rh6+ {[%clk 0:00:38]}  Kg7 {[%clk 0:00:28]} 43. Rh5 {[%clk 0:00:38]}  Kf6 {[%clk 0:00:29]} 44. Rh8 {[%clk 0:00:28]}  Nd6 {[%clk 0:00:28]} 45. Rxc8 {[%clk 0:00:28]}  Nxc8 {[%clk 0:00:28]} 46. Rd8 {[%clk 0:00:29]}  Nd6 {[%clk 0:00:28]} 47. Rf8+ {[%clk 0:00:26]}  Rf7 {[%clk 0:00:28]} 48. Rb8 {[%clk 0:00:24]}  Rd7 {[%clk 0:00:27]} 49. Bf2 {[%clk 0:00:22]}  c6 {[%clk 0:00:27]} 50. Bc5 {[%clk 0:00:17]}  Nc4 {[%clk 0:00:26]} 51. Rf8+ {[%clk 0:00:14]}  Kg6 {[%clk 0:00:26]} 52. Re8 {[%clk 0:00:15]}  Kf7 {[%clk 0:00:26]} 53. Rf8+ {[%clk 0:00:14]}  Kg6 {[%clk 0:00:25]} 54. Re8 {[%clk 0:00:15]}  Kf7 {[%clk 0:00:24]} 55. Rf8+ {[%clk 0:00:15]}  Kg7 {[%clk 0:00:24]} 56. Re8 {[%clk 0:00:16]}  Kf6 {[%clk 0:00:23]} 57. Rf8+ {[%clk 0:00:16]}  Kg7 {[%clk 0:00:21]} 58. Re8 {[%clk 0:00:16]}  Kf7 {[%clk 0:00:19]} 1/2-1/2


[Site "https://www.chess.com"]

[Event "Titled Tuesday Blitz May 4 2021"]
[White "Piccoli, Lucas Fonseca"]
[Black "Lomaia, Diana"]
[WhiteFideId "2190788"]
[BlackFideId "13612476"]
[WhiteElo "1776"]
[BlackElo "1742"]
[Result "0-1"]
[Round "06"]
[TimeControl "180+1"]
[Date "2021.05.04"]
[WhiteClock "0:00:50"]
[BlackClock "0:00:54"]

1. c4 {[%clk 0:03:00]}  e5 {[%clk 0:02:59]} 2. Nc3 {[%clk 0:03:01]}  Nf6 {[%clk 0:03:00]} 3. Nf3 {[%clk 0:03:01]}  Nc6 {[%clk 0:02:59]} 4. e3 {[%clk 0:03:02]}  Bb4 {[%clk 0:03:00]} 5. Qc2 {[%clk 0:03:03]}  O-O {[%clk 0:02:57]} 6. Nd5 {[%clk 0:03:03]}  Re8 {[%clk 0:02:45]} 7. Ng5 {[%clk 0:03:03]}  e4 {[%clk 0:02:28]} 8. Nxb4 {[%clk 0:02:51]}  Nxb4 {[%clk 0:02:26]} 9. Qc3 {[%clk 0:02:52]}  Nc6 {[%clk 0:02:22]} 10. b4 {[%clk 0:02:52]}  d5 {[%clk 0:02:20]} 11. b5 {[%clk 0:02:52]}  d4 {[%clk 0:02:12]} 12. exd4 {[%clk 0:02:40]}  Nxd4 {[%clk 0:02:12]} 13. Bb2 {[%clk 0:02:40]}  Nf5 {[%clk 0:02:00]} 14. O-O-O {[%clk 0:02:36]}  h6 {[%clk 0:01:59]} 15. Nh3 {[%clk 0:02:34]}  a6 {[%clk 0:01:53]} 16. g4 {[%clk 0:02:20]}  Nd6 {[%clk 0:01:36]} 17. g5 {[%clk 0:02:15]}  hxg5 {[%clk 0:01:35]} 18. Nxg5 {[%clk 0:02:11]}  axb5 {[%clk 0:01:35]} 19. Rg1 {[%clk 0:02:04]}  b4 {[%clk 0:01:33]} 20. Qg3 {[%clk 0:02:00]}  Nf5 {[%clk 0:01:29]} 21. Qh3 {[%clk 0:01:57]}  Nd4 {[%clk 0:01:20]} 22. Qe3 {[%clk 0:01:22]}  c5 {[%clk 0:01:08]} 23. Kb1 {[%clk 0:01:11]}  Qa5 {[%clk 0:01:03]} 24. a3 {[%clk 0:01:05]}  bxa3 {[%clk 0:01:01]} 25. Bc3 {[%clk 0:01:06]}  a2+ {[%clk 0:00:58]} 26. Ka1 {[%clk 0:00:57]}  Nc2+ {[%clk 0:00:58]} 27. Kb2 {[%clk 0:00:57]}  Nxe3 {[%clk 0:00:54]} 28. fxe3 {[%clk 0:00:50]} 0-1


[Site "https://www.chess.com"]

[Event "Titled Tuesday Blitz May 4 2021"]
[White "Piesik, Piotr"]
[Black "Lagunow, Raphael"]
[WhiteFideId "1136194"]
[BlackFideId "24652644"]
[WhiteElo "2369"]
[BlackElo "2400"]
[Result "1-0"]
[Round "06"]
[TimeControl "180+1"]
[Date "2021.05.04"]
[WhiteClock "0:01:43"]
[BlackClock "0:00:54"]

1. Nf3 {[%clk 0:03:00]}  d5 {[%clk 0:02:58]} 2. g3 {[%clk 0:03:00]}  Nd7 {[%clk 0:02:58]} 3. Bg2 {[%clk 0:02:59]}  e5 {[%clk 0:02:58]} 4. d3 {[%clk 0:03:00]}  Ngf6 {[%clk 0:02:57]} 5. O-O {[%clk 0:03:00]}  Bd6 {[%clk 0:02:56]} 6. Nbd2 {[%clk 0:02:59]}  O-O {[%clk 0:02:56]} 7. e4 {[%clk 0:03:00]}  c6 {[%clk 0:02:56]} 8. Qe2 {[%clk 0:02:59]}  Re8 {[%clk 0:02:55]} 9. Nb3 {[%clk 0:02:58]}  a5 {[%clk 0:02:52]} 10. a4 {[%clk 0:02:57]}  b6 {[%clk 0:02:16]} 11. Bg5 {[%clk 0:02:53]}  h6 {[%clk 0:02:15]} 12. Bd2 {[%clk 0:02:51]}  dxe4 {[%clk 0:02:13]} 13. dxe4 {[%clk 0:02:50]}  Ba6 {[%clk 0:02:14]} 14. c4 {[%clk 0:02:50]}  Qe7 {[%clk 0:02:08]} 15. Rfd1 {[%clk 0:02:47]}  Qe6 {[%clk 0:02:06]} 16. Rac1 {[%clk 0:02:44]}  Red8 {[%clk 0:02:06]} 17. Nh4 {[%clk 0:02:43]}  Nc5 {[%clk 0:01:58]} 18. Nxc5 {[%clk 0:02:43]}  Bxc5 {[%clk 0:01:59]} 19. Nf5 {[%clk 0:02:37]}  Bf8 {[%clk 0:01:53]} 20. b3 {[%clk 0:02:36]}  Kh7 {[%clk 0:01:45]} 21. Be3 {[%clk 0:02:34]}  Bc5 {[%clk 0:01:41]} 22. Bxc5 {[%clk 0:02:31]}  bxc5 {[%clk 0:01:41]} 23. Qe3 {[%clk 0:02:29]}  Rd4 {[%clk 0:01:39]} 24. Nxd4 {[%clk 0:02:28]}  cxd4 {[%clk 0:01:39]} 25. Qd2 {[%clk 0:02:27]}  c5 {[%clk 0:01:39]} 26. Qxa5 {[%clk 0:02:26]}  Qc6 {[%clk 0:01:28]} 27. b4 {[%clk 0:02:20]}  Bxc4 {[%clk 0:01:20]} 28. Qxc5 {[%clk 0:02:15]}  Qxc5 {[%clk 0:01:21]} 29. bxc5 {[%clk 0:02:16]}  Rxa4 {[%clk 0:01:21]} 30. c6 {[%clk 0:02:15]}  Ne8 {[%clk 0:01:21]} 31. Bf1 {[%clk 0:02:13]}  Bxf1 {[%clk 0:01:20]} 32. Kxf1 {[%clk 0:02:14]}  Nc7 {[%clk 0:01:19]} 33. Rc5 {[%clk 0:02:14]}  f6 {[%clk 0:01:18]} 34. Rb1 {[%clk 0:02:14]}  Ra8 {[%clk 0:01:12]} 35. Rb7 {[%clk 0:02:13]}  Ne6 {[%clk 0:01:13]} 36. Rc1 {[%clk 0:02:11]}  d3 {[%clk 0:01:06]} 37. Rd7 {[%clk 0:02:04]}  Nd4 {[%clk 0:01:03]} 38. c7 {[%clk 0:02:02]}  Rc8 {[%clk 0:01:02]} 39. Rxd4 {[%clk 0:01:46]}  exd4 {[%clk 0:01:02]} 40. Ke1 {[%clk 0:01:46]}  Kg6 {[%clk 0:01:02]} 41. Kd2 {[%clk 0:01:46]}  Kf7 {[%clk 0:01:02]} 42. Kxd3 {[%clk 0:01:46]}  Ke6 {[%clk 0:01:03]} 43. Kxd4 {[%clk 0:01:46]}  Kd6 {[%clk 0:01:03]} 44. f4 {[%clk 0:01:46]}  Rxc7 {[%clk 0:01:04]} 45. Rxc7 {[%clk 0:01:46]}  Kxc7 {[%clk 0:01:04]} 46. Kd5 {[%clk 0:01:45]}  Kd7 {[%clk 0:01:05]} 47. e5 {[%clk 0:01:45]}  fxe5 {[%clk 0:00:55]} 48. fxe5 {[%clk 0:01:46]}  Ke7 {[%clk 0:00:55]} 49. g4 {[%clk 0:01:45]}  g6 {[%clk 0:00:54]} 50. h4 {[%clk 0:01:43]} 1-0


[Site "https://www.chess.com"]

[Event "Titled Tuesday Blitz May 4 2021"]
[White "Podetti, Davide"]
[Black "Dogan, Mire Deniz"]
[WhiteFideId "893617"]
[BlackFideId "6317456"]
[WhiteElo "2131"]
[BlackElo "1850"]
[Result "1-0"]
[Round "06"]
[TimeControl "180+1"]
[Date "2021.05.04"]
[WhiteClock "0:00:51"]
[BlackClock "0:00:08"]

1. e4 {[%clk 0:03:00]}  e6 {[%clk 0:03:00]} 2. d4 {[%clk 0:03:00]}  d5 {[%clk 0:03:01]} 3. Nc3 {[%clk 0:03:01]}  dxe4 {[%clk 0:03:01]} 4. Nxe4 {[%clk 0:03:01]}  Nd7 {[%clk 0:03:02]} 5. g3 {[%clk 0:02:59]}  Ngf6 {[%clk 0:03:02]} 6. Nxf6+ {[%clk 0:02:59]}  Nxf6 {[%clk 0:03:02]} 7. Bg2 {[%clk 0:03:00]}  c5 {[%clk 0:03:03]} 8. Ne2 {[%clk 0:03:00]}  cxd4 {[%clk 0:03:02]} 9. Nxd4 {[%clk 0:03:00]}  Bc5 {[%clk 0:03:00]} 10. Nb3 {[%clk 0:02:59]}  Qxd1+ {[%clk 0:02:59]} 11. Kxd1 {[%clk 0:03:00]}  Bxf2 {[%clk 0:02:59]} 12. Ke2 {[%clk 0:02:58]}  Bb6 {[%clk 0:02:58]} 13. a4 {[%clk 0:02:53]}  Bc7 {[%clk 0:02:57]} 14. Be3 {[%clk 0:02:49]}  Nd5 {[%clk 0:02:54]} 15. Bd4 {[%clk 0:02:44]}  O-O {[%clk 0:02:53]} 16. Rad1 {[%clk 0:02:40]}  b6 {[%clk 0:02:53]} 17. Kd2 {[%clk 0:02:28]}  Ba6 {[%clk 0:02:47]} 18. Rhe1 {[%clk 0:02:26]}  Rad8 {[%clk 0:02:42]} 19. Kc1 {[%clk 0:02:26]}  Rfe8 {[%clk 0:02:27]} 20. c3 {[%clk 0:02:23]}  Bc4 {[%clk 0:02:07]} 21. Nd2 {[%clk 0:02:22]}  Bd3 {[%clk 0:02:06]} 22. Nb3 {[%clk 0:02:16]}  Bg6 {[%clk 0:02:06]} 23. Bg1 {[%clk 0:02:12]}  Nf6 {[%clk 0:01:50]} 24. Nd4 {[%clk 0:02:07]}  e5 {[%clk 0:01:36]} 25. Nc6 {[%clk 0:02:03]}  Rxd1+ {[%clk 0:01:36]} 26. Rxd1 {[%clk 0:02:03]}  h5 {[%clk 0:01:24]} 27. Nxa7 {[%clk 0:01:56]}  e4 {[%clk 0:01:18]} 28. Nb5 {[%clk 0:01:55]}  Be5 {[%clk 0:01:11]} 29. Bxb6 {[%clk 0:01:50]}  h4 {[%clk 0:01:07]} 30. gxh4 {[%clk 0:01:48]}  Bf4+ {[%clk 0:01:03]} 31. Kb1 {[%clk 0:01:45]}  e3+ {[%clk 0:01:04]} 32. Ka2 {[%clk 0:01:41]}  e2 {[%clk 0:01:04]} 33. Re1 {[%clk 0:01:41]}  Bd2 {[%clk 0:01:04]} 34. Bf2 {[%clk 0:01:42]}  Ng4 {[%clk 0:00:58]} 35. Bf3 {[%clk 0:01:34]}  Bxe1 {[%clk 0:00:48]} 36. Bxe1 {[%clk 0:01:34]}  Nxh2 {[%clk 0:00:48]} 37. Bg2 {[%clk 0:01:27]}  Be4 {[%clk 0:00:48]} 38. Bxe4 {[%clk 0:01:24]}  Rxe4 {[%clk 0:00:49]} 39. Nd4 {[%clk 0:01:24]}  Nf3 {[%clk 0:00:48]} 40. Nxf3 {[%clk 0:01:24]}  Rf4 {[%clk 0:00:44]} 41. Nd4 {[%clk 0:01:15]}  Rf1 {[%clk 0:00:44]} 42. Nc2 {[%clk 0:01:15]}  f5 {[%clk 0:00:30]} 43. a5 {[%clk 0:01:12]}  Rg1 {[%clk 0:00:31]} 44. a6 {[%clk 0:01:12]}  Rg6 {[%clk 0:00:30]} 45. Nb4 {[%clk 0:01:12]}  Re6 {[%clk 0:00:24]} 46. Kb3 {[%clk 0:01:12]}  f4 {[%clk 0:00:24]} 47. Kc4 {[%clk 0:01:12]}  f3 {[%clk 0:00:23]} 48. a7 {[%clk 0:01:10]}  Re8 {[%clk 0:00:24]} 49. Kb5 {[%clk 0:01:09]}  Kh7 {[%clk 0:00:23]} 50. c4 {[%clk 0:01:08]}  Kh6 {[%clk 0:00:24]} 51. c5 {[%clk 0:01:08]}  Kh5 {[%clk 0:00:25]} 52. c6 {[%clk 0:01:09]}  Kg4 {[%clk 0:00:26]} 53. c7 {[%clk 0:01:09]}  Kh3 {[%clk 0:00:24]} 54. Nd3 {[%clk 0:01:09]}  Kg2 {[%clk 0:00:20]} 55. Kc6 {[%clk 0:01:08]}  Re3 {[%clk 0:00:18]} 56. c8=Q {[%clk 0:01:05]}  Rxd3 {[%clk 0:00:18]} 57. a8=Q {[%clk 0:01:04]}  Kf1 {[%clk 0:00:15]} 58. Qa1 {[%clk 0:00:57]}  Rd1 {[%clk 0:00:15]} 59. Qh3+ {[%clk 0:00:57]}  Kxe1 {[%clk 0:00:15]} 60. Qa5+ {[%clk 0:00:50]}  Kf2 {[%clk 0:00:10]} 61. Qc5+ {[%clk 0:00:50]}  Ke1 {[%clk 0:00:10]} 62. Qxf3 {[%clk 0:00:50]}  g5 {[%clk 0:00:07]} 63. Qcf2+ {[%clk 0:00:49]}  Kd2 {[%clk 0:00:07]} 64. Q2xe2+ {[%clk 0:00:50]}  Kc1 {[%clk 0:00:07]} 65. Qxd1+ {[%clk 0:00:51]}  Kxb2 {[%clk 0:00:08]} 66. Qfb3# {[%clk 0:00:51]} 1-0


[Site "https://www.chess.com"]